bitfinex-derivatives/quotes_BTCF0:USTF0_20250315
["timestamp","ask_amount","ask_price","bid_price","bid_amount"]
[1742013881201,0.182326,84582.0,84581.0,0.3608]
[1742013882595,0.182326,84582.0,84581.0,0.7290274]
[1742013882796,0.182326,84582.0,84581.0,0.4790274]
[1742013883102,0.182326,84582.0,84581.0,0.3608]
[1742013883398,0.182326,84582.0,84581.0,0.7190274]
[1742013883785,0.182326,84582.0,84581.0,0.7490274]
[1742013883987,0.182326,84582.0,84581.0,0.4790274]
[1742013884186,0.182326,84582.0,84581.0,0.7290274]
[1742013884388,0.182326,84582.0,84581.0,0.4790274]
[1742013884590,0.182326,84582.0,84581.0,0.7991274]
[1742013884898,0.182326,84582.0,84581.0,0.5091274]
[1742013885496,0.182326,84582.0,84581.0,0.7591274]
[1742013885996,0.182326,84582.0,84581.0,0.5091274]
[1742013886397,0.182326,84582.0,84581.0,0.7791274]
[1742013886986,0.182326,84582.0,84581.0,0.3909]
[1742013888099,0.182326,84582.0,84581.0,0.5091274]
[1742013888283,0.182326,84582.0,84581.0,0.3909]
[1742013888490,0.182326,84582.0,84581.0,0.6209]
[1742013888994,0.182326,84582.0,84581.0,0.3909]
[1742013889392,0.182326,84582.0,84581.0,0.6509]
[1742013890001,0.182326,84582.0,84581.0,0.3909]
[1742013890391,0.182326,84582.0,84581.0,0.6709]
[1742013890592,0.182326,84582.0,84581.0,0.3909]
[1742013891593,0.182326,84582.0,84581.0,0.6409]
[1742013891904,0.182326,84582.0,84581.0,0.3909]
[1742013892296,0.182326,84582.0,84581.0,0.60334407]
[1742013892604,0.182326,84582.0,84581.0,0.83334407]
[1742013892988,0.182326,84582.0,84581.0,0.60334407]
[1742013893305,0.182326,84582.0,84581.0,0.99157147]
[1742013893505,0.182326,84582.0,84581.0,0.72157147]
[1742013893905,0.182326,84582.0,84581.0,0.57324407]
[1742013894107,0.182326,84582.0,84581.0,0.94147147]
[1742013894407,0.182326,84582.0,84581.0,0.97457147]
[1742013894701,0.182326,84582.0,84581.0,1.00467147]
[1742013895005,0.182326,84582.0,84581.0,1.03467147]
[1742013895206,0.182326,84582.0,84581.0,1.02667147]
[1742013895395,0.182326,84582.0,84581.0,1.03667147]
[1742013895901,0.182326,84582.0,84581.0,1.02667147]
[1742013896114,0.182326,84582.0,84581.0,1.03667147]
[1742013896312,0.182326,84582.0,84581.0,1.06667147]
[1742013896602,0.182326,84582.0,84581.0,1.25667147]
[1742013896808,0.182326,84582.0,84581.0,0.78667147]
[1742013897109,0.182326,84582.0,84581.0,1.30667147]
[1742013897609,0.182326,84582.0,84581.0,1.0942274]
[1742013897812,0.182326,84582.0,84581.0,0.5742274]
[1742013898110,0.182326,84582.0,84581.0,0.8342274]
[1742013898307,0.182326,84582.0,84581.0,1.0642274]
[1742013898612,0.182326,84582.0,84581.0,0.5742274]
[1742013898805,0.182326,84582.0,84581.0,1.0642274]
[1742013899910,0.182326,84582.0,84581.0,0.8442274]
[1742013900108,0.182326,84582.0,84581.0,1.0842274]
[1742013900700,0.182326,84582.0,84581.0,1.1142274]
[1742013900894,0.182326,84582.0,84581.0,1.0642274]
[1742013901303,0.182326,84582.0,84581.0,0.5742274]
[1742013901505,0.182326,84582.0,84581.0,0.8542274]
[1742013901709,0.182326,84582.0,84581.0,0.8242274]
[1742013901905,0.182326,84582.0,84581.0,0.5742274]
[1742013902107,0.19331481,84582.0,84581.0,1.0742274]
[1742013902306,0.19331481,84582.0,84581.0,0.5742274]
[1742013902904,0.21201072,84582.0,84581.0,0.8142274]
[1742013903213,0.21201072,84582.0,84581.0,0.4534274]
[1742013903415,0.21201072,84582.0,84581.0,0.1814274]
[1742013903602,0.21201072,84582.0,84581.0,0.3569112]
[1742013903803,0.21201072,84582.0,84581.0,0.8669112]
[1742013904000,0.21201072,84582.0,84581.0,0.6577112]
[1742013904209,0.21201072,84582.0,84581.0,0.54564407]
[1742013904400,0.20831481,84582.0,84581.0,0.39387147]
[1742013904798,0.20831481,84582.0,84581.0,0.65387147]
[1742013905012,0.197326,84582.0,84581.0,0.92387147]
[1742013905200,0.197326,84582.0,84581.0,0.27564407]
[1742013905405,0.197326,84582.0,84581.0,0.36377147]
[1742013905812,0.197326,84582.0,84581.0,0.61377147]
[1742013906109,0.197326,84582.0,84581.0,0.4313274]
[1742013906312,0.197326,84582.0,84581.0,0.1513274]
[1742013906712,0.197326,84582.0,84581.0,0.0331]
[1742013907103,0.1182302,84579.0,84578.0,0.14940903]
[1742013907309,0.1182302,84579.0,84578.0,0.40940903]
[1742013907505,0.1182302,84579.0,84578.0,0.14940903]
[1742013907905,0.2996502,84579.0,84578.0,0.39940903]
[1742013908213,0.2996502,84579.0,84578.0,0.38940903]
[1742013908605,0.2996502,84579.0,84578.0,0.14940903]
[1742013908805,0.2996502,84579.0,84578.0,0.39940903]
[1742013909103,0.2996502,84579.0,84578.0,0.41940903]
[1742013909307,0.2996502,84579.0,84578.0,0.14940903]
[1742013909608,0.2996502,84579.0,84578.0,0.44950903]
[1742013909813,0.2996502,84579.0,84578.0,0.71950903]
[1742013910015,0.2996502,84579.0,84578.0,0.17950903]
[1742013910209,0.2996502,84579.0,84578.0,0.90950903]
[1742013910508,0.2996502,84579.0,84578.0,0.41950903]
[1742013910714,0.2996502,84579.0,84578.0,0.42950903]
[1742013911102,0.2996502,84579.0,84578.0,0.17950903]
[1742013911308,0.2996502,84579.0,84578.0,0.44950903]
[1742013911508,0.2996502,84579.0,84578.0,0.17950903]
[1742013911709,0.2996502,84579.0,84578.0,0.37940903]
[1742013912011,0.1795302,84579.0,84578.0,0.37940903]
[1742013912213,0.2996502,84579.0,84578.0,0.37940903]
[1742013912515,0.2996502,84579.0,84578.0,0.14940903]
[1742013912722,0.2996502,84579.0,84578.0,0.45270903]
[1742013913114,0.2996502,84579.0,84578.0,0.42270903]
[1742013913407,0.2996502,84579.0,84577.0,0.14095709]
[1742013913408,0.3145316,84578.0,84577.0,0.14095709]
[1742013913608,0.6269316,84578.0,84577.0,0.00423039]
[1742013913811,0.1182428,84570.0,84569.0,0.35377271]
[1742013914107,0.8391628,84570.0,84569.0,0.35377271]
[1742013914416,1.0354628,84570.0,84569.0,0.35377271]
[1742013915409,1.0678628,84570.0,84569.0,0.35377271]
[1742013915920,1.0678628,84570.0,84562.0,0.0324]
[1742013915921,0.1182526,84563.0,84562.0,0.0625]
[1742013916108,0.1182526,84563.0,84562.0,0.3425]
[1742013916703,0.1488526,84563.0,84562.0,0.3125]
[1742013916903,0.1488526,84563.0,84562.0,0.0625]
[1742013917115,0.1488526,84563.0,84562.0,0.180754]
[1742013917319,0.1488526,84563.0,84562.0,0.420754]
[1742013917618,0.1508526,84563.0,84562.0,0.180754]
[1742013917818,0.1538526,84563.0,84562.0,0.180754]
[1742013918319,0.1538526,84563.0,84562.0,0.0625]
[1742013920021,0.1538526,84563.0,84562.0,0.180754]
[1742013920709,0.1538526,84563.0,84562.0,0.0625]
[1742013922920,0.3829526,84563.0,84562.0,0.0625]
[1742013924218,0.3829526,84563.0,84562.0,0.3225]
[1742013924624,0.3829526,84563.0,84562.0,0.0625]
[1742013924815,0.3829526,84563.0,84562.0,0.470754]
[1742013925015,0.3829526,84563.0,84562.0,0.0625]
[1742013926016,0.3829526,84563.0,84562.0,0.3225]
[1742013926215,0.3829526,84563.0,84562.0,0.0625]
[1742013926416,0.3829526,84563.0,84562.0,0.3125]
[1742013926613,0.314554,84562.0,84561.0,0.00017733]
[1742013926818,0.536854,84562.0,84561.0,0.00017733]
[1742013927018,0.601254,84562.0,84561.0,0.00017733]
[1742013928620,0.378954,84562.0,84561.0,0.00017733]
[1742013929127,0.380954,84562.0,84561.0,0.06407733]
[1742013929528,0.383954,84562.0,84561.0,0.06407733]
[1742013931327,0.573954,84562.0,84561.0,0.06407733]
[1742013933416,0.573954,84562.0,84561.0,0.03257733]
[1742013937124,0.744754,84562.0,84561.0,0.03257733]
[1742013942833,0.844754,84562.0,84561.0,0.03257733]
[1742013943029,1.014754,84562.0,84561.0,0.03257733]
[1742013943333,0.744754,84562.0,84561.0,0.03257733]
[1742013945137,1.014754,84562.0,84561.0,0.03257733]
[1742013945343,0.744754,84562.0,84561.0,0.03257733]
[1742013946029,0.854754,84562.0,84561.0,0.03257733]
[1742013946236,0.744754,84562.0,84561.0,0.03257733]
[1742013947928,0.834754,84562.0,84561.0,0.03257733]
[1742013948130,0.744754,84562.0,84561.0,0.03257733]
[1742013954046,0.834754,84562.0,84561.0,0.03257733]
[1742013954237,0.744754,84562.0,84561.0,0.03257733]
[1742013955447,1.004754,84562.0,84561.0,0.03257733]
[1742013955646,0.744754,84562.0,84561.0,0.03257733]
[1742013956343,0.123254,84562.0,84561.0,0.42083273]
[1742013956541,0.243294,84562.0,84561.0,0.03257733]
[1742013956943,0.243294,84562.0,84561.0,0.15083273]
[1742013957242,0.243294,84562.0,84561.0,0.18263273]
[1742013958847,0.243294,84562.0,84561.0,0.06437733]
[1742013959746,0.306894,84562.0,84561.0,0.06437733]
[1742013967546,0.503194,84562.0,84561.0,0.06437733]
[1742013969251,0.243294,84562.0,84561.0,0.06437733]
[1742013969855,0.243294,84562.0,84561.0,0.18263273]
[1742013972461,0.243294,84562.0,84561.0,0.06437733]
[1742013972845,0.243294,84562.0,84561.0,0.19468428]
[1742013973052,0.243294,84562.0,84561.0,0.07642888]
[1742013973253,0.274194,84562.0,84561.0,0.06437733]
[1742013973654,0.305794,84562.0,84561.0,0.06437733]
[1742013975358,0.305794,84562.0,84561.0,0.18263273]
[1742013976649,0.305794,84562.0,84561.0,0.06437733]
[1742013978551,0.305794,84562.0,84561.0,0.18263273]
[1742013981563,0.305794,84562.0,84561.0,0.06437733]
[1742013982859,0.305794,84562.0,84561.0,0.18263273]
[1742013983063,0.305794,84562.0,84561.0,0.06437733]
[1742013983254,0.305794,84562.0,84561.0,0.18263273]
[1742013986265,0.305794,84562.0,84561.0,0.06437733]
[1742013987274,0.565794,84562.0,84561.0,0.06437733]
[1742013987453,0.305794,84562.0,84561.0,0.06437733]
[1742013987857,0.305794,84562.0,84561.0,0.18263273]
[1742013988059,0.305794,84562.0,84561.0,0.06437733]
[1742013989257,0.305794,84562.0,84561.0,0.03257733]
[1742013989457,0.532794,84562.0,84561.0,0.00017733]
[1742013989658,0.3145596,84558.0,84557.0,0.212699]
[1742013989858,0.5645596,84558.0,84557.0,0.212699]
[1742013990463,0.6266596,84558.0,84557.0,0.212699]
[1742013990665,0.314561,84557.0,84556.0,0.212699]
[1742013990965,0.574561,84557.0,84556.0,0.212699]
[1742013991167,0.636661,84557.0,84556.0,0.212699]
[1742013992066,0.640661,84557.0,84556.0,0.212699]
[1742013993372,0.118268,84552.0,84551.0,0.062]
[1742013993675,0.599028,84552.0,84551.0,0.062]
[1742013994063,0.72114397,84552.0,84551.0,0.062]
[1742013994270,0.67604397,84552.0,84551.0,0.062]
[1742013994464,0.95604397,84552.0,84551.0,0.062]
[1742013994667,0.67604397,84552.0,84551.0,0.062]
[1742013994868,0.79004397,84552.0,84551.0,0.062]
[1742013995058,0.68004397,84552.0,84551.0,0.062]
[1742013995369,0.95004397,84552.0,84551.0,0.062]
[1742013995559,0.68404397,84552.0,84551.0,0.062]
[1742013995762,0.551968,84552.0,84551.0,0.062]
[1742013995970,0.671928,84552.0,84551.0,0.062]
[1742013996962,0.669928,84552.0,84551.0,0.062]
[1742013997168,0.674928,84552.0,84551.0,0.062]
[1742013997474,0.934928,84552.0,84551.0,0.062]
[1742013997862,0.554968,84552.0,84551.0,0.062]
[1742013998068,0.904928,84552.0,84551.0,0.062]
[1742013998278,0.314128,84552.0,84551.0,0.062]
[1742014002672,0.510428,84552.0,84551.0,0.062]
[1742014003071,0.510428,84552.0,84551.0,0.1802694]
[1742014003277,0.510428,84552.0,84551.0,0.062]
[1742014003678,0.510428,84552.0,84551.0,0.1802694]
[1742014005983,0.510428,84552.0,84551.0,0.062]
[1742014006181,0.600428,84552.0,84551.0,0.062]
[1742014006482,0.510428,84552.0,84551.0,0.062]
[1742014006865,0.510428,84552.0,84551.0,0.1802694]
[1742014007271,0.510428,84552.0,84551.0,0.062]
[1742014007672,0.510428,84552.0,84551.0,0.1802694]
[1742014008187,0.510428,84552.0,84551.0,0.062]
[1742014008578,0.510428,84552.0,84551.0,0.1802694]
[1742014009683,0.510428,84552.0,84551.0,0.062]
[1742014010174,0.504428,84552.0,84551.0,0.062]
[1742014010374,0.509428,84552.0,84551.0,0.1802694]
[1742014010575,0.509428,84552.0,84551.0,0.07403757]
[1742014010774,0.504428,84552.0,84551.0,0.07403757]
[1742014010984,0.509428,84552.0,84551.0,0.07403757]
[1742014011782,0.509428,84552.0,84551.0,0.062]
[1742014012983,0.509428,84552.0,84551.0,0.07372223]
[1742014013684,0.509428,84552.0,84551.0,0.19199163]
[1742014015573,0.507428,84552.0,84551.0,0.19199163]
[1742014016777,0.502428,84552.0,84551.0,0.19199163]
[1742014017084,0.606428,84552.0,84551.0,0.07372223]
[1742014017281,0.506428,84552.0,84551.0,0.07372223]
[1742014017986,0.507428,84552.0,84551.0,0.07372223]
[1742014018872,0.507428,84552.0,84551.0,0.19199163]
[1742014019079,0.617428,84552.0,84551.0,0.07372223]
[1742014019278,0.507428,84552.0,84551.0,0.19199163]
[1742014028090,0.503428,84552.0,84551.0,0.19199163]
[1742014028289,0.502428,84552.0,84551.0,0.19199163]
[1742014028489,0.190168,84552.0,84551.0,0.19199163]
[1742014028697,0.310048,84552.0,84551.0,0.19199163]
[1742014029491,0.306048,84552.0,84551.0,0.19199163]
[1742014029696,0.0387,84552.0,84551.0,0.19199163]
[1742014029885,0.007,84552.0,84551.0,1.36279163]
[1742014030089,0.125268,84552.0,84551.0,1.07279163]
[1742014030597,0.125268,84552.0,84551.0,1.30279163]
[1742014030896,0.125268,84552.0,84551.0,1.32279163]
[1742014031101,0.125268,84552.0,84551.0,1.09279163]
[1742014031606,0.125268,84552.0,84551.0,1.05279163]
[1742014032204,0.123268,84552.0,84551.0,1.32279163]
[1742014032698,0.123268,84552.0,84551.0,1.07279163]
[1742014033004,0.123268,84552.0,84551.0,1.29549063]
[1742014033005,0.122268,84552.0,84551.0,1.29549063]
[1742014033589,0.122268,84552.0,84551.0,1.23549063]
[1742014033794,0.122268,84552.0,84551.0,1.30549063]
[1742014033997,0.005,84552.0,84551.0,1.30549063]
[1742014034196,0.005,84552.0,84551.0,1.03549063]
[1742014034400,0.005,84552.0,84551.0,1.49549063]
[1742014034904,0.005,84552.0,84551.0,1.50549063]
[1742014035094,0.005,84552.0,84551.0,1.03549063]
[1742014035405,0.005,84552.0,84551.0,1.32279163]
[1742014035605,0.005,84552.0,84551.0,1.09279163]
[1742014035904,0.005,84552.0,84551.0,1.03279163]
[1742014036105,0.120268,84552.0,84551.0,1.03279163]
[1742014036405,0.123268,84552.0,84551.0,1.07279163]
[1742014036593,0.123268,84552.0,84551.0,1.08279163]
[1742014036794,0.123268,84552.0,84551.0,1.33279163]
[1742014037002,0.122268,84552.0,84551.0,1.06279163]
[1742014037195,0.122268,84552.0,84551.0,1.07279163]
[1742014037394,0.122268,84552.0,84551.0,0.55279163]
[1742014037595,0.122268,84552.0,84551.0,1.09279163]
[1742014037793,0.122268,84552.0,84551.0,1.06279163]
[1742014038396,0.122268,84552.0,84551.0,1.04279163]
[1742014038604,0.152368,84552.0,84551.0,1.02279163]
[1742014039093,0.152368,84552.0,84551.0,1.37279163]
[1742014039300,0.153368,84552.0,84551.0,1.10279163]
[1742014039696,0.153368,84552.0,84551.0,1.08279163]
[1742014040103,0.153368,84552.0,84551.0,1.36279163]
[1742014040709,0.153368,84552.0,84551.0,1.34279163]
[1742014041209,0.153368,84552.0,84551.0,1.09279163]
[1742014041405,0.0351,84552.0,84551.0,0.83279163]
[1742014041597,0.0321,84552.0,84551.0,1.05279163]
[1742014041909,0.152368,84552.0,84551.0,1.07279163]
[1742014042500,0.150368,84552.0,84551.0,1.08279163]
[1742014042701,0.152368,84552.0,84551.0,1.09279163]
[1742014043106,0.152368,84552.0,84551.0,1.10279163]
[1742014043297,0.152368,84552.0,84551.0,1.01279163]
[1742014043298,0.150368,84552.0,84551.0,1.01279163]
[1742014043502,0.152368,84552.0,84551.0,0.78279163]
[1742014043802,0.152368,84552.0,84551.0,0.55279163]
[1742014044007,0.152368,84552.0,84551.0,1.05279163]
[1742014044608,0.152368,84552.0,84551.0,0.82279163]
[1742014044809,0.152368,84552.0,84551.0,1.06279163]
[1742014045108,0.153368,84552.0,84551.0,1.06279163]
[1742014045302,0.153368,84552.0,84551.0,1.05279163]
[1742014045910,0.152368,84552.0,84551.0,1.05279163]
[1742014046307,0.152368,84552.0,84551.0,1.08279163]
[1742014046603,0.150368,84552.0,84551.0,1.08279163]
[1742014046805,0.153368,84552.0,84551.0,1.08279163]
[1742014047404,0.153368,84552.0,84551.0,1.09279163]
[1742014047603,0.153368,84552.0,84551.0,1.10279163]
[1742014048413,0.153368,84552.0,84551.0,1.08279163]
[1742014048609,0.153368,84552.0,84551.0,1.06279163]
[1742014049507,0.153368,84552.0,84551.0,0.80279163]
[1742014050005,0.153368,84552.0,84551.0,1.05279163]
[1742014050504,0.153368,84552.0,84551.0,1.09279163]
[1742014050705,0.153368,84552.0,84551.0,1.04279163]
[1742014051015,0.183768,84552.0,84551.0,1.01279163]
[1742014051403,0.183768,84552.0,84551.0,0.78279163]
[1742014051608,0.183768,84552.0,84551.0,1.01279163]
[1742014051909,0.183768,84552.0,84551.0,1.04279163]
[1742014052308,0.19462253,84552.0,84551.0,1.09279163]
[1742014052504,0.19462253,84552.0,84551.0,0.55279163]
[1742014052709,0.19462253,84552.0,84551.0,1.04279163]
[1742014053004,0.19462253,84552.0,84551.0,1.32279163]
[1742014053305,0.19462253,84552.0,84551.0,1.04279163]
[1742014053507,0.19462253,84552.0,84551.0,0.78279163]
[1742014053708,0.19462253,84552.0,84551.0,0.81279163]
[1742014053910,0.19462253,84552.0,84551.0,1.04279163]
[1742014054520,0.19462253,84552.0,84551.0,0.84279163]
[1742014054710,0.19462253,84552.0,84551.0,0.79279163]
[1742014055214,0.19462253,84552.0,84551.0,1.07279163]
[1742014055718,0.19462253,84552.0,84551.0,0.79279163]
[1742014055909,0.19462253,84552.0,84551.0,1.02279163]
[1742014056109,0.19462253,84552.0,84551.0,1.06279163]
[1742014056617,0.19462253,84552.0,84551.0,1.05279163]
[1742014057117,0.19462253,84552.0,84551.0,1.09279163]
[1742014057302,0.19462253,84552.0,84551.0,1.32279163]
[1742014057711,0.19472517,84552.0,84551.0,1.32279163]
[1742014057908,0.19472517,84552.0,84551.0,0.83279163]
[1742014058114,0.19472517,84552.0,84551.0,1.32279163]
[1742014058313,0.19472517,84552.0,84551.0,1.06279163]
[1742014058916,0.19472517,84552.0,84551.0,1.33279163]
[1742014059418,0.183768,84552.0,84551.0,1.33279163]
[1742014059614,0.183768,84552.0,84551.0,1.06279163]
[1742014059820,0.183768,84552.0,84551.0,1.53517663]
[1742014060119,0.183768,84552.0,84551.0,1.55517663]
[1742014060814,0.183768,84552.0,84551.0,1.52517663]
[1742014062010,0.183768,84552.0,84551.0,1.28517663]
[1742014062417,0.183768,84552.0,84551.0,1.56517663]
[1742014062730,0.183768,84552.0,84551.0,0.76517663]
[1742014063024,0.183768,84552.0,84551.0,1.04279163]
[1742014063520,0.183768,84552.0,84551.0,0.81279163]
[1742014063709,0.183768,84552.0,84551.0,0.80279163]
[1742014063906,0.183768,84552.0,84551.0,1.05279163]
[1742014064118,0.183768,84552.0,84551.0,1.09279163]
[1742014064514,0.183768,84552.0,84551.0,0.82279163]
[1742014064713,0.183768,84552.0,84551.0,0.81279163]
[1742014064917,0.183768,84552.0,84551.0,1.31279163]
[1742014065113,0.183768,84552.0,84551.0,1.34279163]
[1742014065320,0.183768,84552.0,84551.0,0.80279163]
[1742014066028,0.183768,84552.0,84551.0,1.02279163]
[1742014066517,0.183768,84552.0,84551.0,0.79279163]
[1742014066916,0.183768,84552.0,84551.0,0.49079163]
[1742014067120,0.216168,84552.0,84551.0,0.49079163]
[1742014067612,0.216168,84552.0,84551.0,0.52319163]
[1742014067821,0.216168,84552.0,84551.0,0.55549163]
[1742014069127,0.216168,84552.0,84551.0,0.49079163]
[1742014069622,0.1182708,84550.0,84549.0,0.24538939]
[1742014069827,0.1182708,84550.0,84549.0,0.21298939]
[1742014070023,0.1798708,84550.0,84549.0,0.21298939]
[1742014070225,0.5406708,84550.0,84549.0,0.21298939]
[1742014070630,0.1798708,84550.0,84549.0,0.21298939]
[1742014070932,0.5446708,84550.0,84549.0,0.21298939]
[1742014071520,0.6546708,84550.0,84549.0,0.21298939]
[1742014071721,0.7409708,84550.0,84549.0,0.21298939]
[1742014073124,0.3801708,84550.0,84549.0,0.21298939]
[1742014073337,0.9509708,84550.0,84549.0,0.12736298]
[1742014073519,0.1182918,84535.0,84534.0,0.12736298]
[1742014073722,0.2380118,84535.0,84534.0,0.38736298]
[1742014074029,0.2380118,84535.0,84534.0,0.47565618]
[1742014074333,0.2380118,84535.0,84534.0,0.38736298]
[1742014074636,0.3024118,84535.0,84534.0,0.39898854]
[1742014074829,0.3034118,84535.0,84534.0,0.41898854]
[1742014075028,0.3034118,84535.0,84534.0,0.39898854]
[1742014075529,0.3044118,84535.0,84534.0,0.39898854]
[1742014075832,0.3044118,84535.0,84534.0,0.16928854]
[1742014076023,0.3044118,84535.0,84534.0,0.45928854]
[1742014076223,0.3044118,84535.0,84534.0,0.16928854]
[1742014076423,0.3044118,84535.0,84534.0,0.04192556]
[1742014076633,0.3044118,84535.0,84534.0,0.30192556]
[1742014077432,0.3044118,84535.0,84534.0,0.04192556]
[1742014081132,0.3044118,84535.0,84534.0,0.16021876]
[1742014081434,0.3044118,84535.0,84534.0,0.04192556]
[1742014082036,0.3044118,84535.0,84534.0,0.07492556]
[1742014103545,0.3044118,84535.0,84534.0,0.19321876]
[1742014103742,0.3044118,84535.0,84534.0,0.43321876]
[1742014103947,0.3044118,84535.0,84534.0,0.19321876]
[1742014104246,0.3044118,84535.0,84534.0,0.47321876]
[1742014104434,0.3044118,84535.0,84534.0,0.44321876]
[1742014104639,0.3044118,84535.0,84534.0,0.19321876]
[1742014105650,0.3044118,84535.0,84534.0,0.43321876]
[1742014105947,0.3044118,84535.0,84534.0,0.36492556]
[1742014106145,0.3044118,84535.0,84534.0,0.07492556]
[1742014106337,0.3044118,84535.0,84534.0,0.45321876]
[1742014106855,0.3044118,84535.0,84534.0,0.19321876]
[1742014107844,0.5007118,84535.0,84534.0,0.19321876]
[1742014108051,0.3044118,84535.0,84534.0,0.19321876]
[1742014108349,0.3044118,84535.0,84534.0,0.07492556]
[1742014108742,0.3044118,84535.0,84534.0,0.44321876]
[1742014109457,0.3044118,84535.0,84534.0,0.07492556]
[1742014109749,0.31619864,84535.0,84534.0,0.07492556]
[1742014110346,0.3044118,84535.0,84534.0,0.07492556]
[1742014110751,0.3044118,84535.0,84534.0,0.44321876]
[1742014111052,0.3044118,84535.0,84534.0,0.46321876]
[1742014111653,0.3044118,84535.0,84534.0,0.43321876]
[1742014112654,0.3044118,84535.0,84534.0,0.19321876]
[1742014112949,0.3044118,84535.0,84534.0,0.07492556]
[1742014113945,0.3044118,84535.0,84534.0,0.31492556]
[1742014114148,0.3044118,84535.0,84534.0,0.35492556]
[1742014114349,0.3044118,84535.0,84534.0,0.07492556]
[1742014114548,0.3044118,84535.0,84534.0,0.33492556]
[1742014114747,0.3044118,84535.0,84534.0,0.07492556]
[1742014114952,0.3044118,84535.0,84534.0,0.33492556]
[1742014115249,0.3044118,84535.0,84534.0,0.07492556]
[1742014115645,0.3044118,84535.0,84534.0,0.31492556]
[1742014115847,0.3044118,84535.0,84534.0,0.35492556]
[1742014116147,0.3044118,84535.0,84534.0,0.30492556]
[1742014116853,0.3044118,84535.0,84534.0,0.35492556]
[1742014117054,0.3044118,84535.0,84534.0,0.07492556]
[1742014117953,0.3044118,84535.0,84534.0,0.19321876]
[1742014118544,0.3044118,84535.0,84534.0,0.44321876]
[1742014118949,0.3044118,84535.0,84534.0,0.45321876]
[1742014119152,0.3044118,84535.0,84534.0,0.19321876]
[1742014123562,0.3044118,84535.0,84534.0,0.48321876]
[1742014124356,0.3044118,84535.0,84534.0,0.19321876]
[1742014124659,0.3044118,84535.0,84534.0,0.45321876]
[1742014125543,0.3044118,84535.0,84534.0,0.19321876]
[1742014126258,0.3044118,84535.0,84534.0,0.47321876]
[1742014126447,0.3044118,84535.0,84534.0,0.19321876]
[1742014126643,0.3044118,84535.0,84534.0,0.45321876]
[1742014126849,0.3044118,84535.0,84534.0,0.42321876]
[1742014127152,0.3044118,84535.0,84534.0,0.19321876]
[1742014128049,0.3044118,84535.0,84534.0,0.46321876]
[1742014128450,0.3044118,84535.0,84534.0,0.19321876]
[1742014128952,0.3044118,84535.0,84534.0,0.43321876]
[1742014129155,0.3044118,84535.0,84534.0,0.19321876]
[1742014129659,0.3044118,84535.0,84534.0,0.45321876]
[1742014130163,0.2400118,84535.0,84534.0,0.45321876]
[1742014130356,0.2400118,84535.0,84534.0,0.19321876]
[1742014130660,0.2400118,84535.0,84534.0,0.47321876]
[1742014130863,0.3020118,84535.0,84534.0,0.43321876]
[1742014131763,0.3020118,84535.0,84534.0,0.45321876]
[1742014132149,0.3020118,84535.0,84534.0,0.19321876]
[1742014132353,0.2719118,84535.0,84534.0,0.44321876]
[1742014132656,0.2719118,84535.0,84534.0,0.19321876]
[1742014132963,0.2719118,84535.0,84534.0,0.45321876]
[1742014133364,0.2719118,84535.0,84534.0,0.69321876]
[1742014133661,0.2719118,84535.0,84534.0,0.68321876]
[1742014133864,0.2400118,84535.0,84534.0,0.68321876]
[1742014134061,0.2400118,84535.0,84534.0,0.71321876]
[1742014134465,0.2400118,84535.0,84534.0,0.70321876]
[1742014135465,0.2400118,84535.0,84534.0,0.72321876]
[1742014135765,0.12172,84535.0,84534.0,0.71321876]
[1742014136165,0.2400118,84535.0,84534.0,0.71321876]
[1742014137557,0.2400118,84535.0,84534.0,0.75321876]
[1742014137759,0.2400118,84535.0,84534.0,0.70321876]
[1742014137971,0.2400118,84535.0,84534.0,0.71321876]
[1742014138369,0.2400118,84535.0,84534.0,0.47321876]
[1742014138672,0.2400118,84535.0,84534.0,0.71321876]
[1742014138971,0.2400118,84535.0,84534.0,0.73321876]
[1742014139160,0.2400118,84535.0,84534.0,0.68321876]
[1742014139358,0.2400118,84535.0,84534.0,0.66321876]
[1742014139869,0.2400118,84535.0,84534.0,0.69321876]
[1742014140070,0.2400118,84535.0,84534.0,0.71321876]
[1742014140764,0.2726118,84535.0,84534.0,0.68321876]
[1742014141070,0.3045118,84535.0,84534.0,0.68321876]
[1742014141270,0.3045118,84535.0,84534.0,0.69321876]
[1742014141483,0.3045118,84535.0,84534.0,0.19321876]
[1742014141662,0.3045118,84535.0,84534.0,0.76321876]
[1742014143571,0.3045118,84535.0,84534.0,0.19321876]
[1742014143873,0.3045118,84535.0,84534.0,0.69321876]
[1742014144273,0.3045118,84535.0,84534.0,0.67321876]
[1742014145171,0.3045118,84535.0,84534.0,0.72321876]
[1742014145565,0.3045118,84535.0,84534.0,0.19321876]
[1742014145873,0.3045118,84535.0,84534.0,0.68321876]
[1742014146068,0.12156,84535.0,84534.0,0.68321876]
[1742014146270,0.002,84535.0,84534.0,0.66321876]
[1742014146774,0.002,84535.0,84534.0,0.94321876]
[1742014147771,0.1786991,84545.0,84542.0,0.118282]
[1742014147972,0.11845804,84543.0,84542.0,1.189082]
[1742014148173,0.11845804,84543.0,84542.0,0.773482]
[1742014148366,0.11845804,84543.0,84542.0,1.313482]
[1742014148767,0.00017744,84543.0,84542.0,1.253482]
[1742014149076,0.12345804,84543.0,84542.0,0.773482]
[1742014149265,0.00517744,84543.0,84542.0,1.293482]
[1742014150070,0.00517744,84543.0,84542.0,0.773482]
[1742014150279,0.00517744,84543.0,84542.0,1.283482]
[1742014150471,0.00517744,84543.0,84542.0,1.313482]
[1742014151983,0.00517744,84543.0,84542.0,1.043482]
[1742014152379,0.00517744,84543.0,84542.0,1.033482]
[1742014152782,0.00517744,84543.0,84542.0,1.283482]
[1742014154381,0.00517744,84543.0,84542.0,1.033482]
[1742014154586,0.00517744,84543.0,84542.0,1.263482]
[1742014154888,0.00517744,84543.0,84542.0,1.033482]
[1742014155088,0.00517744,84543.0,84542.0,1.283482]
[1742014155589,0.00517744,84543.0,84542.0,1.313482]
[1742014155789,0.00517744,84543.0,84542.0,1.263482]
[1742014155985,0.00517744,84543.0,84542.0,1.033482]
[1742014156186,0.00517744,84543.0,84542.0,1.293482]
[1742014156489,0.00517744,84543.0,84542.0,1.263482]
[1742014156688,0.00517744,84543.0,84542.0,1.033482]
[1742014156887,0.00517744,84543.0,84542.0,1.273482]
[1742014157589,0.00517744,84543.0,84542.0,1.303482]
[1742014158698,0.00517744,84543.0,84542.0,1.033482]
[1742014158993,0.00517744,84543.0,84542.0,1.283482]
[1742014159196,0.00517744,84543.0,84542.0,1.033482]